bitfinex-derivatives/quotes_ETHF0:USTF0_20240927
["timestamp","ask_amount","ask_price","bid_price","bid_amount"]
[1727431313266,0.37538,2663.3,2663.2,0.86108]
[1727431313473,0.5118,2663.3,2663.2,0.86108]
[1727431316471,1.45026,2663.3,2663.0,0.37541]
[1727431316675,1.394,2663.2,2663.1,0.3754]
[1727431316875,1.394,2663.2,2663.0,0.37541]
[1727431319583,0.3754,2663.1,2663.0,0.37541]
[1727431320184,4.2264,2663.2,2662.9,0.5185]
[1727431320679,0.37541,2663.1,2663.0,0.37541]
[1727431321277,1.394,2663.2,2663.0,0.37541]
[1727431321878,1.394,2663.2,2663.1,0.3754]
[1727431323689,1.0186,2663.2,2663.1,0.3754]
[1727431324485,1.0186,2663.2,2662.9,2.44035927]
[1727431324486,1.0186,2663.2,2662.9,1.50178927]
[1727431324687,3.58322,2663.0,2662.7,1.35873927]
[1727431324988,0.86973,2662.9,2662.7,0.37545]
[1727431325190,0.9915,2662.8,2662.7,0.37545]
[1727431325391,0.4927,2662.8,2662.7,0.37545]
[1727431325592,3.2078,2663.0,2662.9,0.37543]
[1727431326183,3.2078,2663.0,2662.9,0.85303]
[1727431326384,3.2078,2663.0,2662.7,2.47328927]
[1727431326583,3.2078,2663.0,2662.7,0.37545]
[1727431326584,1.36383,2662.9,2662.7,0.37545]
[1727431326791,0.9884,2662.9,2662.8,0.37545]
[1727431327179,1.36383,2662.9,2662.7,0.37545]
[1727431327385,1.36383,2662.9,2662.6,1.46088927]
[1727431327386,0.9884,2662.9,2662.6,1.46088927]
[1727431327780,0.9884,2662.9,2662.8,0.37545]
[1727431328491,0.5026,2662.9,2662.8,0.37545]
[1727431329789,0.5026,2662.9,2662.5,0.98328927]
[1727431329790,5.7478,2662.9,2662.5,0.98328927]
[1727431330088,1.9926,2662.9,2662.4,0.8493]
[1727431330287,0.37548,2662.6,2662.3,0.37551]
[1727431330490,1.5145,2662.5,2662.3,0.84931]
[1727431330697,1.5145,2662.5,2662.4,0.3755]
[1727431332093,1.5145,2662.5,2662.4,1.8655]
[1727431332288,0.519,2662.5,2662.4,0.3755]
[1727431332883,0.4878,2662.7,2662.6,0.37547]
[1727431333794,0.4878,2662.7,2662.3,4.2137]
[1727431333795,0.4878,2662.7,2662.5,0.37548]
[1727431333991,0.4878,2662.7,2662.3,4.2137]
[1727431334195,0.4878,2662.7,2662.6,0.37547]
[1727431334591,0.4878,2662.7,2662.5,0.37548]
[1727431334894,0.4878,2662.7,2662.6,0.37547]
[1727431335092,0.4878,2662.7,2662.3,5.19698927]
[1727431335399,0.4878,2662.7,2662.3,4.2137]
[1727431335789,0.4878,2662.7,2662.5,0.37548]
[1727431336296,0.4878,2662.7,2662.6,0.37547]
[1727431336498,0.86326,2662.7,2662.5,0.37548]
[1727431337402,0.4878,2662.7,2662.6,0.37547]
[1727431338102,0.86326,2662.7,2662.5,0.37548]
[1727431338503,0.4878,2662.7,2662.6,0.37547]
[1727431338704,0.86326,2662.7,2662.6,0.37547]
[1727431339704,0.86326,2662.7,2662.5,0.37548]
[1727431340004,0.4878,2662.7,2662.6,0.37547]
[1727431340203,0.37547,2662.6,2662.4,0.37549]
[1727431340401,0.49,2662.5,2662.4,0.37549]
[1727431343709,0.49,2662.5,2662.4,1.31425]
[1727431343907,3.2078,2663.4,2663.2,0.37539]
[1727431344100,5.64022,2663.4,2663.1,0.37539]
[1727431344297,0.93852,2663.1,2662.6,4.20270408]
[1727431344509,0.93852,2663.1,2662.8,0.37544]
[1727431344510,0.37543,2662.9,2662.8,0.37544]
[1727431344706,1.86943,2663.0,2662.8,0.37544]
[1727431344910,1.494,2663.0,2662.9,0.37543]
[1727431345211,1.86942,2663.0,2662.8,0.37543]
[1727431345409,1.86942,2663.0,2662.9,0.37543]
[1727431345601,1.494,2663.0,2662.9,0.37543]
[1727431345909,1.86942,2663.0,2662.9,0.37543]
[1727431346498,1.86942,2663.0,2662.8,0.37544]
[1727431347612,4.714,2663.0,2662.4,4.19050408]
[1727431347805,4.714,2663.0,2662.6,0.37547]
[1727431347806,3.58326,2662.8,2662.6,0.37547]
[1727431348312,0.37547,2662.7,2662.5,0.37548]
[1727431348510,0.5196,2662.6,2662.5,0.37548]
[1727431348708,1.0162,2662.6,2662.5,0.37548]
[1727431352118,1.39168,2662.6,2662.4,0.37549]
[1727431352316,0.5178,2662.5,2662.4,0.37549]
[1727431353211,0.5178,2662.5,2662.4,0.3755]
[1727431353914,0.89329,2662.5,2662.2,3.6987]
[1727431354116,0.89329,2662.5,2662.3,0.3755]
[1727431354412,0.89329,2662.5,2662.3,1.8655]
[1727431355709,0.89329,2662.5,2662.4,0.3755]
[1727431355918,0.5178,2662.5,2662.4,0.3755]
[1727431357113,0.89329,2662.5,2662.4,0.3755]
[1727431357715,0.5178,2662.5,2662.4,0.3755]
[1727431358616,3.58321,2663.1,2662.7,0.93865]
[1727431358811,1.0008,2663.2,2663.1,0.3754]
[1727431359009,1.0008,2663.2,2663.1,1.8654]
[1727431359615,1.0008,2663.2,2663.1,0.3754]
[1727431360207,1.37619,2663.2,2663.1,0.3754]
[1727431360712,1.0008,2663.2,2663.1,0.3754]
[1727431361306,1.0008,2663.2,2663.1,2.80392]
[1727431361814,3.2078,2663.4,2663.3,0.37538]
[1727431362029,3.7074,2663.4,2663.3,0.37538]
[1727431362609,4.08276,2663.4,2663.3,0.37538]
[1727431363321,4.64582,2663.4,2663.0,1.49]
[1727431363516,0.3754,2663.2,2663.1,0.37539]
[1727431365725,3.7552,2663.2,2662.6,0.5202]
[1727431366023,0.37546,2662.8,2662.7,0.37545]
[1727431366518,6.963,2662.8,2662.4,1.49]
[1727431366719,0.37551,2662.4,2662.3,0.3755]
[1727431366915,0.3755,2662.5,2662.4,0.37549]
[1727431367113,0.37549,2662.5,2662.4,0.37549]
[1727431367820,0.4908,2662.6,2662.5,0.37549]
[1727431367821,0.86628,2662.6,2662.5,0.37549]
[1727431368822,0.5122,2662.7,2662.6,0.37547]
[1727431369121,0.88767,2662.7,2662.6,0.37547]
[1727431369322,0.37548,2662.6,2662.5,0.37548]
[1727431370525,0.37549,2662.5,2662.4,0.37549]
[1727431371031,0.37551,2662.4,2662.3,0.37551]
[1727431371236,0.86991,2662.4,2662.3,0.37551]
[1727431373137,0.86991,2662.4,2662.2,4.08932]
[1727431374139,0.37552,2662.3,2662.2,3.7138]
[1727431374435,0.86372,2662.3,2662.2,3.7138]
[1727431374835,0.4882,2662.3,2662.2,4.08933]
[1727431375038,0.86372,2662.3,2662.2,3.7138]
[1727431375238,0.4882,2662.3,2662.2,4.08933]
[1727431375849,0.86991,2662.4,2662.2,4.08933]
[1727431376439,0.37552,2662.3,2662.2,3.7138]
[1727431376640,0.86802,2662.3,2662.2,3.7138]
[1727431376841,0.86802,2662.3,2662.2,0.4938]
[1727431380341,0.86802,2662.3,2662.2,0.86933]
[1727431380841,0.37549,2662.5,2662.3,0.37552]
[1727431381236,0.3755,2662.5,2662.3,0.37552]
[1727431381437,1.4169,2662.6,2662.3,0.37552]
[1727431381749,3.2078,2662.8,2662.4,3.22]
[1727431381949,3.2078,2662.8,2662.5,0.37548]
[1727431381950,0.37548,2662.6,2662.5,0.37548]
[1727431382136,0.93866,2662.7,2662.4,3.59549]
[1727431382338,0.37549,2662.6,2662.4,3.59549]
[1727431382536,0.37549,2662.6,2662.5,0.37549]
[1727431383246,0.37549,2662.5,2662.4,3.59549]
[1727431383548,0.4782,2662.5,2662.4,3.59549]
[1727431384748,0.85369,2662.5,2662.4,3.59549]
[1727431385253,0.85369,2662.5,2662.2,0.86932]
[1727431385254,1.41693,2662.5,2662.2,0.86932]
[1727431385542,0.37552,2662.3,2662.2,0.86932]
[1727431386049,0.37552,2662.3,2662.2,0.4938]
[1727431387249,0.37554,2662.1,2662.0,4.2146]
[1727431387451,0.37554,2662.2,2662.0,1.89185]
[1727431387751,0.37554,2662.2,2662.1,0.37554]
[1727431388139,0.37554,2662.2,2662.0,1.89185]
[1727431388555,0.37554,2662.2,2662.1,0.37554]
[1727431390157,0.37554,2662.1,2662.0,0.5095]
[1727431390655,0.87334,2662.1,2662.0,0.5095]
[1727431390955,0.4978,2662.1,2662.0,0.88506]
[1727431391848,3.58332,2662.3,2662.1,0.37554]
[1727431392044,3.7056,2662.3,2662.1,1.49]
[1727431392249,0.37553,2662.2,2662.1,1.49]
[1727431392666,0.37554,2662.1,2662.0,2.37506]
[1727431392846,0.37553,2662.2,2662.1,0.37554]
[1727431394653,0.93883,2662.2,2661.7,0.991]
[1727431394857,0.37557,2661.9,2661.8,2.37538]
[1727431395652,3.2078,2662.0,2661.8,2.37538]
[1727431396262,0.37557,2661.9,2661.8,1.9998]
[1727431396557,1.37157,2661.9,2661.8,1.49]
[1727431396757,1.85737,2661.9,2661.8,1.49]
[1727431396953,0.37559,2661.8,2661.6,1.8656]
[1727431397150,1.4818,2661.9,2661.6,1.49]
[1727431397361,1.85737,2661.9,2661.8,1.49]
[1727431397550,0.996,2661.9,2661.8,1.86559]
[1727431398158,0.507,2661.9,2661.8,1.86559]
[1727431398465,0.507,2661.9,2661.8,1.49]
[1727431398655,0.88257,2661.9,2661.8,1.49]
[1727431398856,0.88257,2661.9,2661.8,1.9825]
[1727431399364,0.88257,2661.9,2661.7,0.37559]
[1727431399560,0.88257,2661.9,2661.7,1.86559]
[1727431399859,0.88257,2661.9,2661.7,1.49]
[1727431400160,0.88257,2661.9,2661.7,1.86559]
[1727431400958,0.37559,2661.8,2661.7,1.49]
[1727431401253,0.37559,2661.8,2661.7,1.8656]
[1727431401464,0.37559,2661.8,2661.7,1.49]
[1727431401864,1.44595,2661.9,2661.5,1.9825]
[1727431402051,0.4871,2661.7,2661.6,0.37561]
[1727431402455,0.8627,2661.7,2661.6,0.37561]
[1727431403052,0.4871,2661.7,2661.6,0.37561]
[1727431403457,0.4871,2661.7,2661.5,1.9825]
[1727431403762,0.4871,2661.7,2661.5,2.35812]
[1727431403959,0.86271,2661.7,2661.6,0.37561]
[1727431404149,1.34041,2661.7,2661.5,2.35812]
[1727431404353,1.34041,2661.7,2661.6,0.37561]
[1727431404548,0.9648,2661.7,2661.6,0.37561]
[1727431404751,0.507,2661.9,2661.7,0.37559]
[1727431404752,0.88258,2661.9,2661.7,0.37559]
[1727431404956,1.39368,2661.9,2661.7,0.37559]
[1727431405160,0.37559,2661.8,2661.7,0.37559]
[1727431405556,1.39368,2661.9,2661.7,0.37559]
[1727431406056,0.37559,2661.8,2661.7,0.37559]
[1727431406470,1.39368,2661.9,2661.8,0.37559]
[1727431406657,0.37559,2661.8,2661.7,0.37559]
[1727431407262,1.39368,2661.9,2661.5,2.92158]
[1727431407452,0.37559,2661.8,2661.7,0.3756]
[1727431407653,0.37559,2661.8,2661.7,0.37559]
[1727431409167,0.37559,2661.8,2661.6,0.3756]
[1727431409369,0.37559,2661.8,2661.7,0.3756]
[1727431409864,0.37559,2661.8,2661.6,0.3756]
[1727431410564,0.3756,2661.7,2661.5,0.4925]
[1727431410757,0.3756,2661.8,2661.6,0.37561]
[1727431410957,0.3756,2661.7,2661.6,0.37561]
[1727431411158,0.3756,2661.8,2661.6,0.37561]
[1727431411863,0.3756,2661.8,2661.5,0.4925]
[1727431412363,1.49,2661.6,2661.3,1.0245]
[1727431412664,0.4832,2661.5,2661.4,0.82163]
[1727431412863,3.2078,2661.7,2661.4,0.446]
[1727431413063,3.691,2661.7,2661.5,0.37562]
[1727431413366,0.4832,2661.7,2661.5,0.37563]
[1727431413865,0.8588,2661.7,2661.4,0.446]
[1727431414065,0.8588,2661.7,2661.4,0.82163]
[1727431414268,0.4492,2661.6,2661.4,0.446]
[1727431414470,0.4492,2661.6,2661.4,0.82164]
[1727431415061,0.4492,2661.6,2661.5,0.37563]
[1727431415372,0.4832,2661.7,2661.6,0.37561]
[1727431415568,0.4832,2661.7,2661.4,0.446]
[1727431415868,0.4832,2661.7,2661.5,0.37563]
[1727431416664,0.4832,2661.7,2661.6,0.37561]
[1727431417274,1.4224,2661.9,2661.7,0.3756]
[1727431417772,0.3756,2661.7,2661.6,0.37561]
[1727431418169,1.8656,2661.8,2661.6,0.37561]
[1727431418368,0.3756,2661.7,2661.6,0.37561]
[1727431420968,4.6978,2661.8,2661.4,0.446]
[1727431421162,0.37563,2661.5,2661.4,0.82164]
[1727431421567,1.77053,2661.5,2661.4,0.82164]
[1727431422170,1.77053,2661.5,2661.4,0.446]
[1727431423277,1.3949,2661.5,2661.4,0.446]
[1727431423477,1.77053,2661.5,2661.4,0.446]
[1727431423674,4.97833,2661.5,2661.4,0.446]
[1727431424779,1.77053,2661.5,2661.4,0.446]
[1727431428177,1.77053,2661.5,2661.4,0.82164]
[1727431428478,1.77053,2661.5,2661.4,0.446]
[1727431429076,1.3949,2661.5,2661.4,0.82164]
[1727431429279,1.77053,2661.5,2661.4,0.82164]
[1727431429485,1.3949,2661.5,2661.4,0.82164]
[1727431430977,4.14675,2661.9,2661.4,0.446]
[1727431431278,4.14675,2661.9,2661.5,0.81932]
[1727431431279,0.37561,2661.7,2661.5,0.81932]
[1727431431669,0.83741,2661.7,2661.5,0.81932]
[1727431432474,1.29409,2661.8,2661.5,0.4437]
[1727431432673,1.29409,2661.8,2661.6,0.37561]
[1727431432674,0.3756,2661.7,2661.6,0.37561]
[1727431432970,1.29409,2661.8,2661.7,0.3756]
[1727431433877,0.37565,2661.4,2661.3,0.37565]
[1727431434085,0.37566,2661.3,2661.2,0.84946]
[1727431434776,0.37566,2661.3,2661.2,0.84947]
[1727431434977,0.37566,2661.3,2661.2,0.4738]
[1727431435178,0.8907,2661.4,2661.2,0.4738]
[1727431435373,0.8907,2661.4,2661.1,1.49]
[1727431435374,0.37569,2661.1,2661.0,0.98270408]
[1727431435575,1.86569,2661.1,2660.9,0.37571]
[1727431435787,4.95061,2661.0,2660.8,0.37572]
[1727431436087,0.37572,2660.9,2660.7,0.81544]
[1727431436278,0.37573,2660.8,2660.7,0.4397]
[1727431436487,0.37572,2660.9,2660.7,0.4397]
[1727431436697,4.95061,2661.0,2660.7,0.4397]
[1727431436984,4.95061,2661.0,2660.7,0.81543]
[1727431437184,4.95061,2661.0,2660.7,0.4397]
[1727431437382,0.37571,2660.9,2660.7,0.4397]
[1727431438881,4.95061,2661.0,2660.7,0.4397]
[1727431439081,0.37572,2660.9,2660.7,0.81544]
[1727431439781,4.95061,2661.0,2660.8,0.37573]
[1727431439987,4.95061,2661.0,2660.8,0.37572]
[1727431439988,4.5749,2661.0,2660.8,0.37572]
[1727431440288,4.5749,2661.0,2660.9,0.37571]
[1727431440589,0.93929,2660.9,2660.4,0.98270408]
[1727431440885,0.37573,2660.8,2660.6,0.37575]
[1727431441582,0.37576,2660.6,2660.4,0.37578]
[1727431441881,0.9221,2660.5,2660.4,0.37578]
[1727431442084,0.9221,2660.5,2660.0,1.12364622]
[1727431442085,0.93947,2660.4,2660.0,0.98270408]
[1727431442290,0.93947,2660.4,2659.8,1.96657854]
[1727431442291,0.37582,2660.2,2659.8,0.37586]
[1727431442489,4.14727,2660.4,2659.8,1.49]
[1727431442490,0.4446,2660.1,2659.8,1.49]
[1727431442689,0.4446,2660.1,2659.9,0.37585]
[1727431442690,3.6524,2660.1,2659.9,0.37585]
[1727431442889,3.6524,2660.1,2659.8,0.37586]
[1727431443187,3.6524,2660.1,2659.8,8.00689793]
[1727431443584,3.6524,2660.1,2659.8,8.38275793]
[1727431444389,3.6524,2660.1,2659.8,9.87275793]
[1727431444585,3.6524,2660.1,2659.8,8.00689793]
[1727431444986,3.6524,2660.1,2659.9,1.49]
[1727431445286,3.6524,2660.1,2659.9,1.86585]
[1727431445892,3.6524,2660.1,2659.9,1.49]
[1727431446087,3.6524,2660.1,2659.7,0.4531]
[1727431446290,3.6524,2660.1,2659.9,1.86585]
[1727431446591,3.2078,2660.1,2659.9,1.86585]
[1727431447095,3.2078,2660.1,2659.9,1.49]
[1727431447593,3.2078,2660.1,2659.9,1.86585]
[1727431447791,0.37582,2660.2,2659.9,1.86585]
[1727431447983,0.37582,2660.2,2659.7,0.4531]
[1727431447984,0.4359,2660.3,2659.7,0.4531]
[1727431448291,3.58363,2660.1,2659.8,0.37586]
[1727431448491,0.4359,2660.3,2660.0,1.49]
[1727431448693,4.1299,2660.5,2660.2,1.8658]
[1727431448903,0.37579,2660.4,2660.2,1.49]
[1727431449192,4.1299,2660.5,2660.2,1.49]
[1727431449398,4.50567,2660.5,2660.2,1.8658]
[1727431449591,4.50567,2660.5,2660.2,1.49]
[1727431449592,4.1299,2660.5,2660.2,1.49]
[1727431449995,4.50567,2660.5,2660.2,1.86581]
[1727431450196,4.1299,2660.5,2660.2,1.49]
[1727431450693,4.50567,2660.5,2660.2,1.8658]
[1727431451090,4.50567,2660.5,2660.3,0.3758]
[1727431451296,4.50567,2660.5,2660.2,1.49]
[1727431452095,4.50567,2660.5,2659.8,0.37586]
[1727431452096,0.37583,2660.1,2659.8,0.37586]
[1727431452397,1.3477,2660.0,2659.9,0.37585]
[1727431452592,2.42948,2660.4,2659.9,0.37585]
[1727431452593,0.37582,2660.2,2659.9,0.37585]
[1727431452793,1.72351,2660.3,2660.0,0.37584]
[1727431453005,1.72351,2660.3,2660.0,1.86584]
[1727431453190,0.37582,2660.2,2660.0,1.49]
[1727431453500,1.72351,2660.3,2660.0,1.86584]
[1727431453690,1.72351,2660.3,2660.0,1.49]
[1727431453691,1.3477,2660.3,2660.0,1.49]
[1727431453892,1.72351,2660.3,2660.0,1.86584]
[1727431454092,1.3477,2660.3,2660.1,1.86582]
[1727431454288,1.3477,2660.3,2660.2,0.4537]
[1727431454691,1.7235,2660.3,2660.2,0.4537]
[1727431455096,1.7235,2660.3,2659.7,4.1475]
[1727431455097,1.3477,2660.3,2659.7,3.2078]
[1727431455296,0.37582,2660.2,2659.9,0.37585]
[1727431455489,1.72351,2660.3,2660.0,0.37584]
[1727431455687,0.37582,2660.2,2659.9,0.37585]
[1727431455888,0.37585,2660.0,2659.8,0.4537]
[1727431456097,0.4429,2659.9,2659.8,0.4537]
[1727431456300,1.3647,2659.9,2659.5,0.16081003]
[1727431456596,1.74057,2659.9,2659.6,8.93162699]
[1727431456797,0.37588,2659.7,2659.6,8.10203699]
[1727431457100,0.93968,2659.8,2659.5,0.37591]
[1727431457101,0.37588,2659.8,2659.5,0.37591]
[1727431457297,0.37589,2659.7,2659.4,0.37592]
[1727431457797,0.3759,2659.6,2659.4,0.37592]
[1727431458001,2.30436,2659.9,2659.5,0.37591]
[1727431458194,2.30436,2659.9,2659.4,0.37592]
[1727431458391,2.30436,2659.9,2659.3,3.2078]
[1727431458392,0.37592,2659.5,2659.3,3.2078]
[1727431458588,0.9234,2659.4,2659.3,3.2078]
[1727431459597,0.9234,2659.4,2659.3,3.58374]
[1727431459994,0.9234,2659.4,2659.3,0.37594]
[1727431460202,1.29933,2659.4,2659.2,4.05115]
[1727431460503,0.9234,2659.4,2659.2,4.05115]
[1727431460697,0.9234,2659.4,2659.3,0.37594]
[1727431461296,1.29933,2659.4,2659.2,4.05115]
[1727431461501,1.29933,2659.4,2659.2,0.82115]
[1727431461700,0.9234,2659.4,2659.3,0.37594]
[1727431462305,0.9234,2659.4,2659.2,0.4452]
[1727431462500,0.37594,2659.3,2659.2,0.4452]
[1727431462810,1.29934,2659.4,2659.2,0.4452]
[1727431462990,1.29934,2659.4,2659.2,0.82115]
[1727431463393,0.9234,2659.4,2659.3,0.37594]
[1727431463599,3.2078,2659.8,2659.3,3.23]
[1727431463797,0.9272,2659.7,2659.3,3.23]
[1727431464092,0.37591,2659.6,2659.4,0.37592]
[1727431464294,0.9272,2659.7,2659.5,0.37591]
[1727431464295,1.30309,2659.7,2659.5,0.37591]
[1727431464500,0.9272,2659.7,2659.6,0.3759]
[1727431464704,0.9272,2659.7,2659.3,3.23]
[1727431464899,0.3759,2659.6,2659.4,0.37592]
[1727431465304,0.9272,2659.7,2659.3,3.23]
[1727431465506,1.30309,2659.7,2659.5,0.3759]
[1727431465694,1.30309,2659.7,2659.4,0.37591]
[1727431465695,0.3759,2659.6,2659.4,0.37591]
[1727431466502,0.37591,2659.5,2659.4,0.37591]
[1727431466804,1.30309,2659.7,2659.5,0.37591]
[1727431466999,0.3759,2659.6,2659.5,0.37591]
[1727431467209,0.9272,2659.7,2659.5,0.3759]
[1727431467399,0.9272,2659.7,2659.6,0.3759]
[1727431467601,0.3759,2659.6,2659.5,0.37591]
[1727431467802,0.9272,2659.7,2659.6,0.3759]
[1727431468006,0.9272,2659.7,2659.5,0.3759]
[1727431468209,1.30309,2659.7,2659.5,0.3759]
[1727431468799,1.30309,2659.7,2659.6,0.3759]
[1727431469009,1.30309,2659.7,2659.5,0.3759]
[1727431469209,0.3759,2659.6,2659.5,0.3759]
[1727431469412,0.3759,2659.6,2659.5,0.37591]
[1727431470101,0.9272,2659.7,2659.6,0.3759]
[1727431470307,0.9272,2659.7,2659.3,0.93985]
[1727431470308,0.3759,2659.6,2659.5,0.37591]
[1727431470504,1.30309,2659.7,2659.5,0.37591]
[1727431471702,1.30309,2659.7,2659.5,0.3759]
[1727431472005,0.37591,2659.6,2659.4,0.37592]
[1727431472301,1.86692,2659.7,2659.4,0.37592]
[1727431472503,0.37591,2659.5,2659.4,0.37592]
[1727431472704,0.37593,2659.4,2659.3,0.37593]
[1727431472910,0.4711,2659.4,2659.3,0.37593]
[1727431473210,0.4711,2659.4,2658.8,3.23]
[1727431473401,0.37596,2659.2,2659.0,0.37598]
[1727431473604,0.4571,2659.1,2659.0,0.37598]
[1727431474914,0.4571,2659.1,2658.7,1.37746]
[1727431475109,0.4571,2659.1,2658.8,0.37601]
[1727431475305,0.37599,2659.0,2658.7,0.4374]
[1727431475608,0.83307,2659.1,2658.7,0.4374]
[1727431475810,0.4601,2658.9,2658.8,0.376]
[1727431476807,0.4601,2658.9,2658.8,4.1368]
[1727431477814,0.83307,2659.1,2658.9,0.37599]
[1727431477815,0.4571,2659.1,2658.9,0.37599]
[1727431478113,1.29317,2659.1,2658.9,0.37599]
[1727431478523,0.9172,2659.1,2658.8,0.37601]
[1727431478816,1.29317,2659.1,2658.9,0.37599]
[1727431479004,1.29317,2659.1,2658.8,0.376]
[1727431479206,0.9172,2659.1,2658.7,0.4374]
[1727431479415,0.9172,2659.1,2658.9,0.37599]
[1727431479808,1.29317,2659.1,2658.9,0.37599]
[1727431480008,0.9172,2659.1,2659.0,0.37598]
[1727431480209,0.9172,2659.1,2658.5,0.16581025]
[1727431480210,0.37603,2658.7,2658.5,0.37604]
[1727431480506,3.23,2658.8,2658.5,0.4592]
[1727431480705,3.23,2658.8,2658.5,0.83525]
[1727431480706,0.4395,2658.6,2658.5,0.83525]
[1727431480906,0.81555,2658.6,2658.2,0.9074]
[1727431481107,3.6473,2658.6,2658.4,0.37606]
[1727431481515,4.02334,2658.6,2658.4,0.37606]
[1727431482807,0.37606,2658.5,2658.3,0.81258]
[1727431483009,0.37606,2658.5,2658.1,0.37611]
[1727431483010,0.37609,2658.3,2658.1,0.37611]
[1727431483315,0.4739,2658.2,2658.0,3.6443]
[1727431483614,0.4383,2658.1,2658.0,4.02042]
[1727431484315,0.4383,2658.1,2658.0,3.2078]
[1727431484316,0.81441,2658.1,2658.0,3.2078]
[1727431484507,0.4383,2658.1,2658.0,3.2078]
[1727431484709,0.81441,2658.1,2658.0,3.2078]
[1727431485018,0.4383,2658.1,2658.0,3.58392]
[1727431485511,0.4639,2658.4,2658.0,3.2078]
[1727431485713,0.8968,2658.4,2658.3,0.37608]
[1727431486214,0.8968,2658.4,2658.3,0.84438]
[1727431487816,0.8968,2658.4,2658.3,0.4683]
[1727431488020,0.8968,2658.4,2658.0,3.2078]
[1727431488209,0.83169,2658.3,2658.1,0.3761]
[1727431488514,0.4556,2658.3,2658.0,3.2078]
[1727431488715,0.83169,2658.3,2658.1,0.37611]
[1727431488913,0.4556,2658.3,2658.2,0.3761]
[1727431489109,0.83168,2658.3,2658.1,0.3761]
[1727431489505,0.4556,2658.3,2658.1,0.3761]
[1727431489713,0.4556,2658.3,2658.2,0.3761]
[1727431490114,0.83168,2658.3,2658.1,0.3761]
[1727431490422,0.4556,2658.3,2658.2,0.3761]
[1727431492321,4.078,2658.8,2658.7,0.37602]
[1727431492522,1.44486,2659.3,2659.0,0.37598]
[1727431492523,0.9389,2659.1,2659.0,0.37598]
[1727431493616,0.4731,2659.1,2659.0,0.37598]
[1727431494720,0.85063,2659.4,2659.3,0.37594]
[1727431495020,0.9309,2659.4,2659.3,0.37594]
[1727431495218,0.9309,2659.4,2658.9,3.5838]
[1727431495416,0.9309,2659.4,2659.2,0.37594]
[1727431495622,0.37594,2659.3,2659.2,0.37594]
[1727431496023,0.37594,2659.3,2659.1,0.37596]
[1727431496818,0.37594,2659.3,2658.8,5.11523]
[1727431497026,1.30683,2659.4,2659.2,0.37595]
[1727431497333,0.9309,2659.4,2659.3,0.37594]
[1727431499326,1.30683,2659.4,2659.3,0.37594]
[1727431499729,0.9309,2659.4,2659.3,0.37594]
[1727431500223,1.30683,2659.4,2658.9,4.14779]
[1727431500428,1.30683,2659.4,2659.2,0.37595]
[1727431500429,0.37594,2659.3,2659.2,0.37595]
[1727431500929,0.37594,2659.3,2659.1,0.37596]
[1727431501222,0.9309,2659.4,2659.1,0.37596]
[1727431501426,0.37596,2659.2,2659.0,0.37597]
[1727431502226,0.37596,2659.2,2658.9,3.2078]
[1727431502227,0.37595,2659.3,2659.1,0.37597]
[1727431502428,0.37596,2659.2,2659.0,0.37597]
[1727431502621,0.37594,2659.3,2659.1,0.37596]
[1727431502817,1.77813,2659.4,2659.2,0.37595]
[1727431503225,1.4022,2659.4,2659.2,0.37595]
[1727431503426,0.9309,2659.4,2659.3,0.37594]
[1727431503621,1.30683,2659.4,2659.2,0.37595]
[1727431504525,0.37594,2659.3,2659.2,0.37595]
[1727431504925,0.9309,2659.4,2659.2,0.37595]
[1727431504926,1.30684,2659.4,2659.2,0.37595]
[1727431505130,1.30684,2659.4,2659.0,0.37597]
[1727431505131,0.37596,2659.2,2659.0,0.37597]
[1727431505329,0.37596,2659.2,2659.1,0.37597]
[1727431505524,0.37597,2659.1,2659.0,0.37598]
[1727431505725,4.1699,2659.2,2658.8,0.8547]
[1727431505926,4.1699,2659.2,2658.6,3.2078]
[1727431505927,0.451,2659.0,2658.6,3.2078]
[1727431506122,0.37601,2658.8,2658.6,3.6801]
[1727431506331,0.4576,2658.9,2658.6,0.4723]
[1727431506630,3.23,2658.8,2658.1,0.98270408]
[1727431506829,0.37605,2658.6,2658.4,0.37606]
[1727431507226,0.451,2658.5,2658.4,0.37606]
[1727431507837,0.451,2658.5,2658.4,4.13766]
[1727431508037,0.451,2658.5,2658.4,0.37606]
[1727431508223,0.451,2658.5,2658.3,0.4723]
[1727431508537,0.451,2658.5,2657.9,5.13083408]
[1727431508538,0.37608,2658.4,2657.9,6.4378]
[1727431508730,0.37608,2658.4,2658.3,0.37608]
[1727431508731,0.4743,2658.4,2658.3,0.37608]
[1727431508925,0.4743,2658.4,2658.2,0.37608]
[1727431509236,0.85037,2658.4,2658.2,0.37609]
[1727431509539,0.4743,2658.4,2658.2,0.37609]
[1727431509728,0.85037,2658.4,2658.2,0.37609]
[1727431510133,0.85037,2658.4,2658.0,0.4664]
[1727431510134,0.4743,2658.4,2658.0,0.4664]
[1727431510335,0.85037,2658.4,2658.2,0.37608]
[1727431510836,0.4743,2658.4,2658.0,0.4664]
[1727431511139,0.4743,2658.4,2658.3,0.37608]
[1727431512541,0.82706,2658.5,2658.3,0.37608]
[1727431513341,0.451,2658.5,2658.0,1.40671]
[1727431513530,0.82706,2658.5,2658.3,0.37607]
[1727431513732,0.82706,2658.5,2658.0,1.40671]